bitfinex-derivatives/quotes_ETHF0:USTF0_20260102
["timestamp","ask_amount","ask_price","bid_price","bid_amount"]
[1767362451791,0.89126225,3051.7,3050.4,0.16406]
[1767362455495,0.75130326,3051.3,3050.0,0.13302979]
[1767362455888,0.75130326,3051.3,3050.1,4.21593605]
[1767362459188,0.13995899,3051.6,3050.2,0.13809537]
[1767362459795,0.75130326,3051.5,3050.2,0.13809537]
[1767362461692,0.00491715,3051.9,3050.2,0.16407]
[1767362461897,0.00491715,3051.9,3050.3,4.57013163]
[1767362462197,0.00491715,3051.9,3050.4,0.13809537]
[1767362462495,0.75098684,3051.6,3050.5,0.13809537]
[1767362462884,0.00491715,3051.9,3050.6,4.5747783]
[1767362463084,0.00491715,3051.9,3050.8,1.05312221]
[1767362463293,0.00491715,3051.9,3050.9,0.13809537]
[1767362463492,0.00491715,3051.9,3050.9,4.46174015]
[1767362464592,0.75098684,3051.7,3050.9,4.46174015]
[1767362465197,0.75098684,3051.7,3050.9,4.32364478]
[1767362465399,0.75098684,3051.4,3050.9,4.32364478]
[1767362467298,0.75098684,3051.7,3050.9,4.32364478]
[1767362468204,0.75098684,3051.7,3050.8,0.16404]
[1767362471403,0.00491715,3051.9,3050.8,0.30213537]
[1767362477710,0.75098684,3051.7,3050.8,0.30213537]
[1767362479708,0.75098684,3051.7,3050.8,0.16404]
[1767362480203,0.75098684,3051.4,3050.8,0.16404]
[1767362480411,0.75098684,3051.4,3050.6,5.527]
[1767362484718,0.75098684,3051.1,3050.4,0.16406]
[1767362485014,0.75098684,3051.1,3050.3,3.791]
[1767362487717,0.75098684,3050.8,3050.3,3.791]
[1767362488218,0.75098684,3050.8,3050.0,0.13809537]
[1767362488419,0.75098684,3050.8,3049.9,5.69800715]
[1767362490518,0.75098684,3050.9,3049.9,5.69800715]
[1767362492522,0.75098684,3050.9,3049.9,5.83671116]
[1767362498427,0.75098684,3050.9,3049.9,5.69800715]
[1767362499123,0.75098684,3050.3,3049.9,5.69800715]
[1767362499324,0.75098684,3050.6,3049.9,5.69800715]
[1767362499922,0.75098684,3050.6,3049.9,5.53391715]
[1767362501929,0.75098684,3050.7,3049.9,5.53391715]
[1767362504219,0.13664094,3051.6,3050.0,0.13870401]
[1767362504423,0.75098684,3051.3,3050.2,0.13870401]
[1767362504620,0.00491715,3051.9,3050.3,0.13870401]
[1767362504825,0.75098684,3051.5,3050.3,0.13870401]
[1767362505127,0.75098684,3051.5,3050.4,5.68170401]
[1767362508135,0.75098684,3051.5,3050.5,0.13870401]
[1767362508834,0.00491715,3051.9,3050.5,0.13870401]
[1767362509135,0.75098684,3051.6,3050.5,0.13870401]
[1767362509931,0.75098684,3051.3,3050.4,5.543]
[1767362511735,0.75098684,3051.8,3050.5,0.13870401]
[1767362511932,0.75590399,3051.9,3050.7,0.13870401]
[1767362512641,0.75098684,3051.7,3050.7,0.13870401]
[1767362514445,0.00491715,3051.9,3050.7,0.13870401]
[1767362514748,0.00491715,3051.9,3050.8,0.13870401]
[1767362520553,0.00491715,3051.9,3050.8,0.30274401]
[1767362521148,0.00491715,3051.9,3050.9,0.12623139]
[1767362521354,0.00491715,3051.9,3051.0,0.12623139]
[1767362522047,0.00491715,3051.9,3051.2,0.75098684]
[1767362522256,0.75098684,3052.6,3051.3,0.12623139]
[1767362522951,0.75098684,3052.6,3051.3,0.29024139]
[1767362523151,0.00491715,3052.1,3051.5,0.00491715]
[1767362523347,0.75098684,3052.8,3051.5,0.13114854]
[1767362523553,0.99833903,3053.0,3051.7,0.12623139]
[1767362523947,0.75098684,3052.8,3051.7,0.12623139]
[1767362524352,0.00491715,3052.6,3051.7,0.12623139]
[1767362524855,0.00811683,3052.6,3051.7,0.12897955]
[1767362525248,0.75035174,3052.5,3051.5,0.00491715]
[1767362525452,0.87805129,3052.5,3051.0,0.12623139]
[1767362525855,0.87805129,3052.5,3051.0,4.45928299]
[1767362526053,0.12769955,3052.5,3051.0,4.45928299]
[1767362526252,0.12769955,3052.5,3051.0,4.46198958]
[1767362526452,0.12769955,3052.5,3051.4,0.00491715]
[1767362527461,0.12769955,3052.5,3051.0,0.16673659]
[1767362527758,0.87805129,3052.3,3051.0,0.16673659]
[1767362528462,0.00811683,3052.6,3051.3,0.00491715]
[1767362529462,0.13581638,3052.6,3051.3,0.00491715]
[1767362535266,0.13581638,3052.6,3051.3,0.13114854]
[1767362535469,0.00811683,3052.6,3051.3,0.13114854]
[1767362539777,0.00811683,3052.6,3051.5,0.12623139]
[1767362541383,0.00811683,3052.6,3051.5,0.29023139]
[1767362541579,0.00811683,3052.6,3051.6,0.12623139]
[1767362542675,0.00811683,3052.6,3051.8,0.12623139]
[1767362554789,0.00811683,3052.6,3051.6,0.164]
[1767362555292,0.00811683,3052.6,3051.7,4.2867381]
[1767362555483,0.00811683,3052.6,3051.7,4.4507281]
[1767362566502,0.00811683,3052.6,3051.7,4.58794721]
[1767362566698,0.16387,3054.0,3052.2,0.13721911]
[1767362566893,0.14103831,3053.8,3052.2,0.13721911]
[1767362567094,0.14103831,3053.8,3052.3,4.33585185]
[1767362567596,0.14103831,3053.8,3052.3,0.13721911]
[1767362567800,0.00491715,3053.4,3052.3,0.13721911]
[1767362577712,0.00491715,3053.4,3052.2,0.16396]
[1767362578715,0.00491715,3053.4,3051.9,0.14513901]
[1767362578916,0.75035174,3052.8,3051.6,0.164]
[1767362579217,0.75035174,3052.8,3051.7,4.3483962]
[1767362580017,0.75035174,3052.8,3051.6,0.164]
[1767362580416,0.75035174,3053.0,3051.6,0.164]
[1767362580818,0.14131482,3052.9,3051.6,0.164]
[1767362581420,0.30522482,3053.3,3051.7,0.14513901]
[1767362581623,0.14131482,3053.3,3051.8,0.14513901]
[1767362584720,0.14131482,3053.2,3051.8,0.14513901]
[1767362586526,0.75041792,3052.7,3051.8,0.14513901]
[1767362587427,0.14131482,3053.2,3051.8,0.14513901]
[1767362587624,0.75041792,3053.2,3052.0,0.14513901]
[1767362587820,0.00491715,3053.4,3052.0,0.14513901]
[1767362588019,0.00491715,3053.4,3052.3,0.14513901]
[1767362593231,0.00491715,3053.4,3052.3,0.30909901]
[1767362593834,0.00491715,3053.4,3052.4,0.14513901]
[1767362594938,0.00491715,3053.4,3052.4,0.30908901]
[1767362595331,0.00491715,3053.4,3052.4,0.14513901]
[1767362595632,0.00415179,3053.8,3052.7,0.97844505]
[1767362596025,0.00415179,3053.8,3052.7,0.14513901]
[1767362596536,0.00491715,3053.6,3052.9,0.00491715]
[1767362601236,0.00415179,3053.8,3052.9,0.15005616]
[1767362601437,0.83330604,3054.5,3053.2,0.83330604]
[1767362601637,0.83330604,3054.3,3053.1,0.14513901]
[1767362602343,0.00491715,3054.0,3053.1,0.14831689]
[1767362603949,0.00491715,3054.0,3053.1,0.31223689]
[1767362604539,0.00491715,3054.0,3053.2,0.16391]
[1767362604741,0.99712604,3055.0,3053.2,0.16391]
[1767362604742,0.83330604,3055.1,3053.6,0.99719604]
[1767362604945,0.83330604,3054.9,3053.6,0.99719604]
[1767362605539,0.83330604,3054.9,3053.6,0.16389]
[1767362605740,0.83330604,3054.5,3053.6,0.16389]
[1767362605941,0.83330604,3054.3,3053.6,0.16389]
[1767362606741,0.83642676,3054.5,3053.6,0.16389]
[1767362608646,0.00312072,3054.5,3053.6,0.16389]
[1767362610963,0.00312072,3054.5,3053.1,0.14831689]
[1767362611149,0.83642676,3054.5,3053.3,0.16391]
[1767362612344,0.83330604,3054.3,3053.3,0.16391]
[1767362614341,0.83330604,3054.0,3053.1,0.00317788]
[1767362615953,0.83330604,3054.3,3053.1,0.00317788]
[1767362616152,0.00312072,3054.5,3053.1,0.975868]
[1767362617755,0.00312072,3054.5,3053.1,1.139788]
[1767362618458,0.00312072,3054.5,3053.2,4.34853354]
[1767362618955,0.83330604,3054.3,3053.2,4.34853354]
[1767362621757,0.00312072,3054.5,3053.2,4.34853354]
[1767362622251,0.83330604,3054.3,3053.2,4.34853354]
[1767362625260,0.83330604,3054.3,3053.2,4.51244354]
[1767362627360,0.00312072,3054.5,3053.2,4.51244354]
[1767362627560,0.83330604,3054.3,3053.2,4.51244354]
[1767362630375,0.00312072,3054.5,3053.2,4.51244354]
[1767362630673,0.83330604,3054.3,3053.2,4.51244354]
[1767362632368,0.83330604,3054.0,3053.2,0.16391]
[1767362634379,0.83330604,3053.6,3052.9,0.00491715]
[1767362635471,0.83330604,3053.6,3052.9,0.00752355]
[1767362635679,0.83330604,3053.6,3053.2,0.16391]
[1767362636185,0.83330604,3053.8,3052.9,0.00752355]
[1767362636683,0.83330604,3054.0,3053.0,0.16392]
[1767362636984,0.83330604,3054.2,3053.0,0.16392]
[1767362637183,0.83330604,3054.0,3053.0,0.16392]
[1767362638287,0.83330604,3053.8,3053.0,0.16392]
[1767362640286,0.14480951,3054.2,3053.0,0.16392]
[1767362640588,0.14480951,3054.2,3053.1,0.16392]
[1767362640889,0.00312072,3054.5,3053.4,0.1639]
[1767362641081,0.83330604,3054.4,3053.4,0.1639]
[1767362641783,0.00312072,3054.5,3053.5,0.1639]
[1767362642587,0.83330604,3054.4,3053.5,0.1639]
[1767362643691,0.83330604,3054.1,3053.5,0.1639]
[1767362643889,0.83330604,3054.1,3053.2,4.21220148]
[1767362644492,0.83330604,3054.1,3053.2,9.68720148]
[1767362644795,0.83330604,3054.1,3053.2,4.21220148]
[1767362644986,0.83330604,3054.1,3053.1,5.475]
[1767362646196,0.83330604,3054.1,3053.1,5.63892]
[1767362648194,0.83330604,3054.1,3053.2,0.16391]
[1767362648395,0.00312072,3054.5,3053.3,0.99721604]
[1767362648595,0.00312072,3054.5,3053.3,0.16391]
[1767362648795,0.00312072,3054.5,3053.4,4.45640221]
[1767362648990,0.00312072,3054.5,3053.4,4.60192613]
[1767362649191,0.00312072,3054.5,3053.4,0.1639]
[1767362653395,0.14793023,3054.5,3053.4,0.1639]
[1767362654893,0.97756823,3054.4,3053.4,0.1639]
[1767362656595,0.00312072,3054.5,3053.4,0.1639]
[1767362657001,0.00312072,3054.5,3053.4,0.30942392]
[1767362657293,0.00312072,3054.5,3053.4,0.1639]
[1767362658488,0.14793023,3054.5,3053.4,0.1639]
[1767362659393,0.00312072,3054.5,3053.4,0.30942392]
[1767362666905,0.00312072,3054.5,3053.5,0.30652589]
[1767362668097,0.00312072,3054.5,3053.7,0.30651589]
[1767362670309,0.00312072,3054.5,3053.8,0.16388]
[1767362670506,0.00312072,3054.5,3053.8,0.30650589]
[1767362673014,0.2509317,3055.2,3053.8,0.30650589]
[1767362673214,0.2509317,3055.2,3053.9,0.16388]
[1767362673817,0.25350555,3055.2,3053.9,0.16388]
[1767362675118,0.25350555,3055.2,3054.0,0.16387]
[1767362675419,0.25350555,3055.2,3054.1,0.16386]
[1767362676413,0.25350555,3055.2,3053.8,0.14262589]
[1767362676414,0.25350555,3055.2,3054.2,0.16386]
[1767362676611,0.14155673,3056.1,3054.6,0.16384]
[1767362676912,0.14155673,3055.7,3055.0,0.00491715]
[1767362677111,0.83275872,3056.0,3054.6,0.16384]
[1767362677309,0.14155673,3055.8,3053.9,0.14262589]
[1767362677513,0.14155673,3055.4,3054.2,0.16386]
[1767362677714,0.14419922,3055.4,3054.2,0.16386]
[1767362678116,0.00489006,3055.1,3054.5,0.00490902]
[1767362687917,0.00489006,3055.1,3054.2,0.16386]
[1767362689026,0.00489006,3055.1,3054.3,0.00490902]
[1767362691626,0.00489006,3055.1,3054.3,0.31138491]
[1767362694631,0.14644679,3055.1,3054.3,0.00490902]
[1767362694930,0.83764878,3055.1,3053.8,0.30650589]
[1767362695732,0.83764878,3055.1,3054.1,0.00490902]
[1767362700139,0.00489006,3055.1,3054.1,0.00490902]
[1767362703939,0.13658685,3055.1,3054.1,0.00490902]
[1767362706042,0.83275872,3054.2,3053.2,0.16391]
[1767362706244,0.13169679,3054.5,3053.2,0.16391]
[1767362706444,0.13169679,3054.5,3053.3,4.20937757]
[1767362707146,0.13169679,3054.5,3053.6,0.00490902]
[1767362707336,0.13169679,3054.5,3052.9,0.13974894]
[1767362707642,0.13169679,3054.5,3053.0,4.30693028]
[1767362708438,0.13169679,3054.5,3053.4,0.00490902]
[1767362708638,0.83312612,3054.0,3053.4,0.00490902]
[1767362709137,0.83312612,3054.0,3053.0,4.30693028]
[1767362709831,0.83312612,3054.0,3052.9,0.13974894]
[1767362710240,0.83312612,3054.0,3053.1,0.00329164]
[1767362711342,0.83312612,3053.8,3053.1,0.00329164]
[1767362711542,0.83312612,3053.6,3052.9,0.0026064]
[1767362711842,0.83312612,3053.6,3052.5,0.13714254]
[1767362712141,0.83312612,3053.6,3052.6,4.2311786]
[1767362712644,0.00490902,3053.4,3052.6,4.23391507]
[1767362713946,0.83803514,3053.4,3052.6,4.23391507]
[1767362714644,0.00490902,3053.4,3052.6,4.23391507]
[1767362719741,0.13169679,3054.4,3053.2,0.83312612]
[1767362719943,0.83312612,3054.6,3053.2,0.83312612]
[1767362720251,0.83312612,3054.4,3053.1,5.58914254]
[1767362720750,0.00490902,3054.1,3053.4,0.00490902]
[1767362720938,0.00390902,3054.1,3053.4,0.00490902]
[1767362728848,0.00290902,3054.1,3053.4,0.00490902]
[1767362729743,0.00190902,3054.1,3053.4,0.00490902]
[1767362730654,0.00090902,3054.1,3053.4,0.00490902]
[1767362731349,0.83303514,3054.4,3053.4,0.00490902]
[1767362731550,0.83312612,3054.2,3053.4,0.00490902]
[1767362731951,0.83212612,3054.2,3053.4,0.00490902]
[1767362732553,0.00490902,3054.1,3053.4,0.00490902]
[1767362732752,0.00390902,3054.1,3053.4,0.00490902]
[1767362733353,0.00290902,3054.1,3053.4,0.00490902]
[1767362734153,0.00190902,3054.1,3053.4,0.00490902]
[1767362740966,0.00090902,3054.1,3053.4,0.00490902]
[1767362744470,0.00090902,3054.1,3053.4,0.00390902]
[1767362746669,0.00090902,3054.1,3053.4,0.14524364]
[1767362748073,0.00090902,3054.1,3053.4,0.30914364]
[1767362748658,0.00090902,3054.1,3053.4,0.16780902]
[1767362749366,0.83403514,3054.1,3053.4,0.16780902]
[1767362749868,0.83312612,3053.9,3053.4,0.00390902]
[1767362754474,0.83312612,3053.9,3052.9,0.16393]
[1767362755377,0.83312612,3053.9,3053.1,0.00490902]
[1767362759372,0.83312612,3053.7,3053.1,0.00490902]
[1767362760379,0.13361428,3054.1,3053.1,0.00490902]
[1767362760668,0.83312612,3053.8,3053.1,0.00490902]
[1767362761979,0.83312612,3053.6,3052.6,0.00273647]
[1767362762178,0.13270526,3053.7,3052.6,0.16667647]
[1767362762179,0.83312612,3053.7,3052.6,0.16667647]
[1767362762378,0.83312612,3053.7,3052.6,0.30319111]
[1767362762980,0.83312612,3053.7,3052.8,0.004]
[1767362765581,0.83312612,3053.5,3052.8,0.004]
[1767362766474,0.83312612,3053.3,3052.8,0.004]
[1767362766674,0.83312612,3053.3,3052.6,0.16667647]
[1767362768081,0.83312612,3053.1,3052.6,0.00273647]
[1767362768383,0.83312612,3053.1,3052.2,5.421]
[1767362769181,0.83625431,3053.1,3052.2,5.42514476]
[1767362770188,0.00312819,3053.1,3052.2,5.42514476]
[1767362771381,0.00312819,3053.1,3052.2,5.42714476]
[1767362771585,0.00312819,3053.1,3052.2,0.00414476]
[1767362771785,0.13583345,3053.1,3052.2,0.00414476]
[1767362775279,0.96934812,3053.1,3050.9,0.13651464]
[1767362775480,0.00490902,3052.3,3051.4,0.16401]
[1767362776391,0.00490902,3052.3,3051.4,0.16789793]
[1767362777193,0.00490902,3052.3,3051.4,0.00388793]
[1767362780387,0.00490902,3052.3,3050.9,0.13651464]
[1767362781395,0.00490902,3052.3,3050.9,0.1393693]
[1767362785097,0.00490902,3052.3,3051.1,0.13651464]
[1767362792302,0.00490902,3052.3,3051.0,4.51880724]
[1767362792303,0.00490902,3052.3,3051.0,0.2959586]
[1767362792594,0.00490902,3052.3,3051.1,0.1319286]
[1767362809319,0.00490902,3052.3,3050.9,0.13478326]
[1767362809320,0.83351467,3052.2,3050.9,0.13478326]
[1767362809524,1.01626483,3052.1,3050.9,0.13478326]
[1767362809722,1.01626483,3052.0,3050.9,0.13478326]
[1767362809925,0.83351467,3052.2,3050.9,0.13478326]
[1767362810225,1.01619669,3052.1,3050.9,0.13478326]
[1767362810417,0.83351467,3052.2,3050.9,0.13478326]
[1767362810620,1.17957812,3052.1,3050.9,0.13478326]
[1767362810922,0.16397,3052.1,3050.9,0.13478326]
[1767362819524,0.16399,3051.8,3050.9,0.00285466]
[1767362820924,0.16399,3051.7,3050.5,0.14025652]
[1767362822026,0.164,3051.6,3050.5,0.14372894]
[1767362826531,0.164,3051.6,3050.5,0.00347242]
[1767362828025,0.164,3051.6,3050.5,0.14372894]
[1767362830743,0.163,3051.6,3050.5,0.14372894]
[1767362832535,0.83470049,3051.3,3050.5,0.14372894]
[1767362833945,0.164,3051.5,3050.5,0.00347242]
[1767362834141,0.83470049,3051.0,3050.5,0.00347242]
[1767362834744,0.83370049,3051.0,3050.5,0.00347242]
[1767362835443,0.83470049,3051.2,3050.5,0.00347242]
[1767362835742,0.83470049,3050.8,3050.0,0.14025652]
[1767362835944,0.00491738,3050.7,3050.0,0.14025652]
[1767362836836,0.00780016,3050.7,3050.0,0.14338489]
[1767362839741,0.16399,3051.8,3050.0,0.14338489]
[1767362840048,0.83470049,3051.6,3050.3,0.14025652]
[1767362840248,0.16399,3051.8,3050.7,0.14025652]
[1767362840849,0.00491738,3051.6,3050.9,0.1451739]
[1767362848753,0.00491738,3051.6,3050.9,0.00391738]
[1767362849648,0.00491738,3051.6,3050.9,0.12922334]
[1767362850857,0.00360214,3051.8,3050.9,0.12922334]
[1767362851857,0.00491738,3051.7,3050.9,0.12922334]
[1767362853257,0.83470049,3052.3,3050.9,0.12922334]
[1767362853551,0.83470049,3052.3,3050.9,0.00391738]
[1767362853757,0.83470049,3052.2,3050.9,0.12922334]
[1767362854353,0.00491738,3051.9,3050.9,0.12922334]
[1767362858666,0.00391738,3051.9,3050.9,0.12922334]
[1767362864072,0.83470049,3051.8,3050.9,0.12922334]
[1767362864272,0.83861787,3051.9,3050.9,0.12922334]
[1767362869671,0.00391738,3051.9,3050.9,0.12922334]
[1767362871079,0.00391738,3051.9,3051.0,0.83470049]
[1767362871270,0.00391738,3051.9,3051.0,0.96000645]
[1767362871471,0.00391738,3051.9,3051.0,0.12530596]
[1767362874376,0.83861787,3051.9,3050.9,0.00391738]
[1767362874580,0.83470049,3051.7,3050.9,0.00391738]
[1767362878184,0.83861787,3051.9,3050.9,0.00391738]
[1767362879082,0.00391738,3051.9,3050.9,0.14370672]
[1767362880282,0.00391738,3051.9,3051.1,0.13978934]
[1767362881188,0.00391738,3051.9,3051.3,0.13978934]
[1767362903509,0.00285058,3052.2,3051.3,0.13978934]
[1767362904411,0.00491738,3052.1,3051.3,0.13978934]
[1767362906607,0.00285058,3052.2,3051.3,0.13978934]
[1767362906910,0.16392,3053.1,3051.3,0.13978934]
[1767362907107,1.01625178,3053.0,3051.4,0.14106249]
[1767362907305,0.15081392,3053.6,3051.7,0.14106249]
[1767362907509,1.01638006,3053.5,3051.7,0.14106249]
[1767362907713,0.00491738,3053.0,3051.7,0.14106249]
[1767362907907,0.00723721,3053.0,3051.7,0.14106249]
[1767362914709,0.83411903,3052.9,3051.7,0.14106249]
[1767362915911,0.00723721,3053.0,3051.9,0.14106249]
[1767362917422,0.16389,3053.7,3051.9,0.14106249]
[1767362918419,0.0042504,3053.1,3052.5,0.00491738]
[1767362918610,0.0042504,3053.1,3052.5,0.00824263]
[1767362919722,0.0042504,3053.1,3052.0,0.14106249]
[1767362920825,0.0042504,3053.1,3052.2,0.14597987]
[1767362939634,0.0042504,3053.1,3052.2,0.00491738]
[1767362939836,0.0042504,3053.1,3052.0,0.00338667]
[1767362940933,0.0042504,3053.1,3052.2,0.00491738]
[1767362941634,0.0042504,3053.1,3052.2,0.14613116]
[1767362947438,0.83836943,3053.1,3052.0,0.00338667]
[1767362947639,0.16392,3053.0,3051.0,1.31677229]
[1767362947941,0.16392,3053.0,3051.1,4.48339017]
[1767362948140,0.16392,3053.0,3051.2,0.16402]
[1767362948442,0.16392,3053.0,3051.3,4.31936017]
[1767362948744,0.16392,3053.0,3051.8,0.00491738]
[1767362952246,0.83411903,3052.6,3051.3,0.0036939]
[1767362953333,0.83411903,3052.6,3051.6,0.00491738]
[1767362954747,0.83419819,3052.1,3051.6,0.00491738]
[1767362955746,0.83419819,3052.1,3051.3,0.0036939]
[1767362956847,0.83419819,3052.1,3051.4,0.00394527]
[1767362962149,0.13252087,3052.7,3051.4,0.00394527]
[1767362962451,0.83419819,3052.1,3051.4,0.00394527]
[1767362963753,0.83419819,3051.9,3051.4,0.00394527]
[1767362963946,0.83419819,3051.9,3051.3,0.0036939]
[1767362964147,0.83419819,3051.7,3050.6,1.32692172]
[1767362964352,0.83419819,3051.7,3050.7,0.14121378]
[1767362964552,0.83419819,3051.5,3050.7,4.35436657]
[1767362964853,0.00491738,3051.4,3050.7,0.14121378]
[1767362965053,0.0076085,3051.4,3050.7,0.14356677]
[1767362981951,0.0076085,3051.4,3050.7,0.00235299]
[1767362982151,0.0066085,3051.4,3050.7,0.00235299]
[1767362983258,0.0066085,3051.4,3050.7,0.00335299]
[1767362985759,0.0056085,3051.4,3050.7,0.00335299]
[1767362990368,0.99816819,3052.2,3050.7,0.98273485]
[1767362990556,1.01904835,3052.1,3050.7,0.98273485]
[1767362990756,0.99816819,3052.2,3050.7,0.98273485]
[1767362991068,1.01905,3052.1,3050.7,0.98273485]
[1767362991366,0.00491738,3051.7,3050.7,0.98273485]
[1767362991564,0.00391738,3051.7,3050.7,0.98273485]
[1767362992759,0.00391738,3051.7,3050.7,0.14853666]
[1767362996672,0.00391738,3051.7,3050.7,0.14753666]
[1767363000665,0.83811557,3051.7,3050.7,0.00235299]
[1767363000861,0.83419819,3051.5,3050.7,0.00235299]
[1767363001256,0.00391738,3051.7,3050.7,0.00235299]
[1767363001460,0.83419819,3051.6,3050.7,0.00135299]
[1767363003171,0.00391738,3051.7,3050.7,0.00135299]
[1767363003573,0.00391738,3051.7,3050.7,0.15109462]
[1767363005171,0.00391738,3051.7,3050.7,0.00135299]
[1767363007475,0.00291738,3051.7,3050.7,0.00135299]
[1767363013273,0.83711557,3051.7,3050.7,0.00135299]
[1767363015571,0.97774845,3051.7,3050.7,0.00135299]
[1767363016081,0.97774845,3051.7,3050.7,0.00035299]
[1767363016374,0.14063288,3051.1,3050.7,0.00035299]
[1767363016579,0.14063288,3051.1,3050.0,0.14974163]
[1767363016776,0.83762548,3051.7,3050.0,0.14974163]
[1767363016972,0.14063288,3051.5,3050.0,0.14974163]
[1767363017177,0.14063288,3051.5,3050.0,0.15240097]
[1767363017580,0.14063288,3051.5,3050.4,0.00491738]
[1767363026181,0.13963288,3051.5,3050.4,0.00491738]
[1767363027592,0.13863288,3051.5,3050.0,0.00265934]
[1767363027886,0.8347081,3051.3,3050.0,0.00265934]
[1767363028588,0.8347081,3051.3,3050.3,0.001]
[1767363029691,0.14533336,3051.2,3050.3,0.001]
[1767363031790,0.14533336,3051.2,3050.0,0.00265934]
[1767363032182,0.14533336,3050.8,3049.2,0.35949863]
[1767363032378,0.14533336,3050.8,3049.2,0.49673176]
[1767363032691,0.14533336,3050.8,3049.3,4.20642453]
[1767363033388,0.14533336,3050.8,3049.3,4.20886284]
[1767363033585,0.14533336,3050.8,3049.3,0.00243831]
[1767363034183,0.14533336,3050.8,3049.3,0.13967144]
[1767363036484,0.14533336,3050.8,3049.3,0.00243831]
[1767363038290,0.14533336,3050.8,3049.3,0.00143831]
[1767363042200,0.14533336,3050.8,3049.3,0.13867144]
[1767363045497,0.14533336,3050.8,3049.3,0.13767144]
[1767363046604,0.14533336,3050.6,3048.9,0.2686006]
[1767363046896,0.00491738,3050.1,3049.0,4.29571263]
[1767363047199,0.00491738,3050.1,3048.9,0.27240861]
[1767363047398,0.00491738,3050.1,3048.7,4.4662329]
[1767363047596,0.00491738,3050.1,3049.0,4.3010729]
[1767363047800,0.00491738,3050.1,3048.8,4.3020729]
[1767363047999,0.00491738,3050.1,3048.8,0.27267768]
[1767363048199,0.00491738,3050.1,3048.8,4.21203677]
[1767363048504,0.00491738,3050.1,3048.8,4.3492699]
[1767363049205,0.00491738,3050.1,3048.8,4.62261129]
[1767363049705,0.00491738,3050.1,3048.8,4.3492699]
[1767363051703,0.15025074,3050.1,3048.8,4.21203677]
[1767363051909,0.15025074,3050.1,3048.7,0.14120578]
[1767363057608,0.00491738,3050.1,3048.7,0.97591388]
[1767363057811,0.00491738,3050.1,3048.8,0.1396353]
[1767363058005,0.00491738,3050.1,3048.9,0.1396353]
[1767363061313,0.00491738,3050.1,3049.1,0.1396353]
[1767363071025,0.00391738,3050.1,3049.1,0.1396353]
[1767363072118,0.00391738,3050.1,3049.3,0.001]
[1767363076026,0.00391738,3050.1,3049.1,0.1396353]
[1767363076526,0.00391738,3050.1,3049.5,0.83491874]
[1767363079026,0.13649598,3050.6,3049.5,0.83491874]
[1767363080230,0.00491738,3050.4,3049.7,0.00391738]
[1767363082130,0.14141336,3050.4,3049.7,0.00391738]
[1767363082327,0.97141472,3050.0,3048.7,0.16812265]
[1767363082530,0.13649598,3050.0,3048.7,1.00304139]
[1767363082830,0.00491738,3050.4,3049.1,0.83491874]
[1767363082831,0.14141336,3050.4,3049.1,0.83491874]
[1767363083828,0.97141472,3050.3,3048.9,0.83491874]
[1767363085534,0.13649598,3050.2,3048.9,0.83491874]
[1767363086934,0.83491874,3050.1,3048.8,0.1396353]
[1767363087136,0.97016624,3050.1,3048.8,0.1396353]
[1767363087731,0.97016624,3050.1,3048.7,1.00304139]
[1767363087933,0.1352475,3050.0,3048.7,1.00304139]
[1767363089336,0.1352475,3050.0,3048.9,0.83491874]
[1767363090834,0.1352475,3050.0,3048.7,0.16812265]
[1767363091036,0.1352475,3050.0,3048.8,0.83491874]
[1767363094850,0.1352475,3050.0,3049.0,0.83491874]
[1767363095040,0.1352475,3050.0,3048.7,0.00397265]
[1767363095350,0.83491874,3049.6,3048.7,0.00397265]
[1767363095544,0.00322522,3049.6,3048.7,0.00397265]
[1767363098847,0.83491874,3049.5,3048.7,0.00397265]
[1767363099152,0.1352475,3049.4,3048.7,0.00397265]
[1767363099744,0.00322522,3049.6,3048.7,0.00397265]
[1767363100848,0.13847272,3049.6,3048.7,0.00397265]
[1767363102351,0.83491874,3049.4,3048.7,0.00397265]
[1767363102652,0.97016624,3049.4,3048.1,0.30247625]
[1767363103248,0.97016624,3049.4,3048.1,0.13828625]
[1767363103447,0.97016624,3049.4,3048.1,0.14108243]
[1767363104052,0.1352475,3049.3,3048.1,0.00279618]
[1767363104249,0.83491874,3049.0,3048.1,0.00279618]
[1767363104554,0.00491738,3048.9,3048.1,0.00279618]
[1767363106560,0.97016624,3048.7,3047.2,0.83491874]
[1767363106761,0.97016624,3048.7,3047.4,0.83491874]
[1767363107153,0.1352475,3048.7,3047.2,0.13828625]
[1767363107460,0.97508362,3048.9,3047.5,0.83491874]
[1767363108157,0.97508362,3048.9,3047.2,0.14230896]
[1767363108355,0.97508362,3048.9,3047.4,0.83491874]
[1767363108752,0.97016624,3048.7,3047.2,0.9772277]
[1767363109751,0.97016624,3048.7,3047.3,0.83491874]
[1767363110360,0.1352475,3048.7,3047.5,0.83491874]
[1767363111059,0.1352475,3048.5,3047.2,0.00402271]
[1767363111262,0.99906874,3048.8,3047.5,0.83491874]
[1767363111559,1.13431624,3048.8,3047.5,0.83491874]
[1767363111962,0.1352475,3048.7,3047.3,0.83491874]
[1767363112961,0.1352475,3048.5,3047.2,0.00402271]
[1767363113464,0.83491874,3048.4,3047.2,0.00402271]
[1767363113767,0.83491874,3048.2,3047.2,0.00402271]
[1767363113961,0.83491874,3048.0,3047.2,0.00402271]
[1767363114164,0.83491874,3047.3,3046.2,0.13828625]
[1767363114466,0.328,3047.9,3047.2,0.97320499]
[1767363114660,0.33291738,3047.9,3047.3,0.13828625]
[1767363114959,0.33291738,3047.9,3046.9,0.13828625]
[1767363115165,0.33525999,3047.9,3046.9,0.1418275]
[1767363116261,0.33525999,3047.9,3047.1,0.14244428]
[1767363118064,1.17017873,3047.9,3047.2,0.26785505]
[1767363118765,1.17017873,3047.9,3047.0,0.2713963]
[1767363118962,1.17017873,3047.9,3047.1,0.14244428]
[1767363118963,0.33525999,3047.9,3047.1,0.14244428]
[1767363119566,0.33525999,3047.9,3047.1,0.14495961]
[1767363120369,1.17017873,3047.9,3047.1,0.14495961]
[1767363120669,1.17017873,3047.9,3047.2,0.2713963]
[1767363120872,1.17017873,3047.9,3047.1,0.00251533]
[1767363120873,0.83491874,3047.7,3047.1,0.00251533]
[1767363121167,0.83491874,3047.7,3047.1,0.27391163]
[1767363121371,0.83491874,3047.7,3047.1,0.27284346]
[1767363122966,0.83491874,3047.7,3047.1,0.00144716]
[1767363123165,0.83491874,3047.7,3046.6,0.14244428]
[1767363123566,0.83491874,3047.5,3046.6,0.14244428]
[1767363123768,0.83491874,3047.5,3046.2,0.97736302]
[1767363123963,0.83491874,3047.5,3046.5,0.2713963]
[1767363124160,0.83491874,3047.5,3046.5,0.27439106]
[1767363124572,0.83491874,3047.5,3046.6,0.2713963]
[1767363124965,0.83491874,3047.5,3046.7,0.2713963]
[1767363126172,0.83491874,3047.5,3046.7,0.2703963]
[1767363126564,0.83491874,3047.5,3046.7,0.26649634]
[1767363127273,0.49945999,3047.9,3045.8,0.14244428]
[1767363127274,0.83491874,3046.9,3045.8,0.14244428]
[1767363127766,0.83491874,3047.1,3046.3,0.2694911]